bitfinex/quotes_ETHUSD_20251124
["timestamp","ask_amount","ask_price","bid_price","bid_amount"]
[1763949702148,0.1849,2834.4,2833.3,0.09999999]
[1763949702149,0.4704,2834.0,2833.3,0.09999999]
[1763949702348,0.4704,2834.0,2833.4,0.09999999]
[1763949702648,0.57010103,2833.9,2833.4,0.09999999]
[1763949702949,0.1849,2833.5,2833.0,0.09999999]
[1763949703148,0.1849,2833.5,2830.9,1.82194812]
[1763949703149,1.04050103,2833.9,2833.3,0.09999999]
[1763949703352,1.04050103,2833.9,2831.9,1.21463208]
[1763949703353,0.4704,2833.9,2833.1,0.09999999]
[1763949703549,0.4704,2833.8,2833.1,0.09999999]
[1763949703749,0.4704,2833.8,2833.6,0.09999999]
[1763949704060,0.4658,2834.3,2834.0,0.09999999]
[1763949704261,0.1849,2834.4,2834.3,0.09999999]
[1763949704462,0.4658,2834.8,2834.6,0.09999999]
[1763949704867,0.4658,2834.8,2834.2,0.09999999]
[1763949705035,1.06102109,2834.7,2834.2,0.09999999]
[1763949705357,0.4658,2834.8,2834.4,0.09999999]
[1763949705738,0.4658,2834.8,2834.7,0.09999999]
[1763949705965,0.1849,2835.0,2834.9,0.09999999]
[1763949706174,1.06064596,2835.6,2835.5,0.09999999]
[1763949706678,1.52644596,2835.6,2835.1,0.09999999]
[1763949706830,0.4658,2835.6,2835.0,0.09999999]
[1763949707182,1.52640847,2835.5,2835.0,0.09999999]
[1763949707328,0.4658,2836.3,2835.2,0.09999999]
[1763949707535,1.06055972,2835.5,2835.0,0.09999999]
[1763949707730,1.06055972,2835.5,2834.5,0.09999999]
[1763949707969,0.4658,2835.4,2834.8,0.09999999]
[1763949708130,0.4658,2835.4,2835.2,0.09999999]
[1763949708536,0.4658,2835.4,2835.3,0.09999999]
[1763949708931,0.1849,2836.4,2836.3,0.09999999]
[1763949709184,0.1849,2836.4,2836.0,0.09999999]
[1763949709380,0.6507,2836.4,2836.3,0.09999999]
[1763949709747,0.1849,2836.4,2836.1,0.19999999]
[1763949709961,0.4658,2836.3,2835.2,0.1]
[1763949710133,0.4658,2836.3,2834.8,1.82194812]
[1763949710134,0.1984,2836.8,2835.1,0.1999]
[1763949710337,0.6642,2836.8,2835.1,1.21463208]
[1763949710571,0.6642,2836.8,2836.1,0.1]
[1763949710938,0.4658,2837.2,2836.1,0.1]
[1763949711272,1.05981414,2837.9,2835.8,1.21463208]
[1763949711468,5.23061034,2836.9,2836.1,0.1]
[1763949711665,0.4658,2837.5,2835.7,3.52646612]
[1763949711866,1.05995643,2837.9,2836.3,1.21463208]
[1763949712083,0.1849,2838.4,2836.6,1.21463208]
[1763949712383,0.58813103,2838.3,2837.7,0.1]
[1763949712678,1.05393103,2838.3,2837.3,0.1]
[1763949712976,1.05393103,2838.3,2837.7,0.1]
[1763949713280,1.05393103,2838.3,2836.7,0.1]
[1763949713488,0.4658,2838.2,2837.3,0.1]
[1763949713636,5.23061034,2837.4,2836.0,1.21463208]
[1763949713832,5.23061034,2837.4,2835.6,1.21463208]
[1763949714069,0.6642,2837.3,2836.3,0.1]
[1763949714487,0.4658,2837.2,2836.2,0.1]
[1763949714645,5.23061034,2836.8,2835.7,0.1]
[1763949714839,5.23061034,2836.2,2835.4,0.1]
[1763949715038,0.90699264,2836.6,2833.5,1.21463208]
[1763949715039,0.1984,2834.5,2833.5,1.21463208]
[1763949715278,5.42901034,2834.5,2832.4,1.21463208]
[1763949715494,0.1984,2833.6,2832.7,0.1]
[1763949715651,0.1984,2833.6,2832.2,0.1]
[1763949715869,0.4658,2836.7,2833.5,20.852182]
[1763949716216,0.4658,2836.7,2834.4,1.18504161]
[1763949716377,0.4658,2837.2,2835.7,0.1]
[1763949716709,5.23061034,2836.9,2835.8,0.1]
[1763949717093,0.4658,2836.8,2835.8,0.1]
[1763949717260,0.4658,2837.2,2835.1,0.1]
[1763949717613,5.23061034,2837.1,2835.9,0.1]
[1763949717913,5.23061034,2837.1,2835.1,2.39193425]
[1763949718074,0.4658,2837.0,2836.2,0.1]
[1763949718282,0.4658,2837.0,2835.2,1.18504161]
[1763949718283,5.23061034,2836.9,2835.2,1.18504161]
[1763949718463,5.23061034,2836.9,2835.1,2.19203425]
[1763949718663,0.4658,2836.8,2835.7,0.1]
[1763949720102,0.46192335,2836.8,2835.7,0.1]
[1763949720488,0.46192335,2836.8,2835.5,0.1]
[1763949720489,3.66797,2836.7,2835.5,0.1]
[1763949720673,0.46192335,2836.8,2834.6,1.18504161]
[1763949720674,0.1984,2835.8,2834.6,1.18504161]
[1763949720884,0.1984,2835.8,2835.1,0.1]
[1763949721084,3.52435693,2837.4,2834.3,1.82194812]
[1763949721085,0.1984,2837.8,2834.7,17.918063]
[1763949721293,0.1984,2837.8,2834.6,1.18504161]
[1763949721294,0.1984,2837.8,2835.2,0.03527088]
[1763949721612,0.1984,2837.8,2836.4,0.1]
[1763949721813,0.1984,2837.8,2837.0,0.1]
[1763949722117,0.6642,2837.8,2836.5,0.1]
[1763949722292,9.69366034,2837.7,2836.5,0.1]
[1763949722494,5.23061034,2837.1,2836.1,0.1]
[1763949722993,0.4658,2837.0,2836.1,0.1]
[1763949723195,1.37279264,2837.0,2835.3,1.18504161]
[1763949723426,1.37279264,2837.0,2835.4,0.1]
[1763949723427,5.23061034,2836.5,2835.4,0.1]
[1763949723784,0.4658,2836.4,2835.6,0.001]
[1763949723982,0.4658,2836.4,2835.7,0.1]
[1763949724184,0.1984,2836.3,2835.7,0.1]
[1763949724397,0.6642,2836.3,2835.7,0.1]
[1763949724707,0.4658,2836.6,2836.0,0.1]
[1763949724868,5.23061034,2836.7,2835.6,0.001]
[1763949725071,5.23061034,2836.7,2836.3,0.1]
[1763949725508,0.1984,2837.6,2835.6,1.85821402]
[1763949725682,0.1984,2837.6,2837.0,0.1]
[1763949725882,0.1984,2837.6,2836.3,0.2038]
[1763949726085,0.4658,2837.5,2836.6,0.1]
[1763949726316,0.4658,2837.5,2836.1,1.18504161]
[1763949726476,0.4658,2837.5,2836.7,0.1]
[1763949726670,0.4658,2837.5,2837.0,0.1]
[1763949727382,0.1984,2837.6,2836.5,0.1]
[1763949727588,0.1984,2837.6,2837.3,0.1]
[1763949727784,0.4903,2838.1,2837.3,0.1]
[1763949727994,0.1822,2838.2,2837.7,0.1]
[1763949728195,0.6725,2838.2,2837.7,0.1]
[1763949728480,5.23061034,2838.5,2836.9,1.18504161]
[1763949728481,5.23061034,2838.5,2838.0,0.1]
[1763949728895,0.4903,2838.3,2837.7,0.1]
[1763949729096,0.4903,2838.3,2837.8,0.1]
[1763949730225,0.1822,2838.6,2838.0,1.18504161]
[1763949730391,0.1822,2838.6,2838.1,1.18504161]
[1763949730586,5.23598593,2839.0,2838.1,1.18504161]
[1763949730803,0.4903,2838.9,2838.0,0.1]
[1763949731121,0.00537559,2839.0,2838.3,0.1]
[1763949731330,0.00537559,2839.0,2838.2,0.1]
[1763949731508,0.4903,2838.3,2838.0,1.82194812]
[1763949731684,5.72091034,2838.3,2838.0,1.82194812]
[1763949731889,0.4903,2838.2,2836.8,2.49974761]
[1763949732211,0.4903,2838.2,2836.9,2.53499735]
[1763949732525,0.00537559,2839.0,2837.1,0.90699264]
[1763949732526,0.4903,2838.9,2837.1,0.90699264]
[1763949732834,0.00537559,2839.0,2837.1,0.90699264]
[1763949732835,0.00537559,2839.0,2837.6,2.49974761]
[1763949733038,0.00537559,2839.0,2837.3,0.90699264]
[1763949733039,0.00537559,2839.0,2838.3,0.1]
[1763949733805,5.23061034,2838.8,2837.4,2.49974761]
[1763949733995,5.23061034,2838.8,2838.0,0.1]
[1763949734190,5.23061034,2838.8,2837.0,2.49974761]
[1763949734191,5.23061034,2838.2,2837.0,2.49974761]
[1763949734394,5.23061034,2838.2,2837.5,0.1]
[1763949734724,5.23061034,2838.2,2837.6,0.1]
[1763949734925,0.1822,2837.7,2836.6,2.49974761]
[1763949735125,5.23061034,2837.5,2836.6,0.1]
[1763949735341,5.23061034,2837.5,2836.1,2.49974761]
[1763949735639,5.72091034,2837.5,2836.1,2.49974761]
[1763949735954,0.1822,2837.7,2836.2,0.23905844]
[1763949736170,0.1822,2837.7,2837.2,0.1]
[1763949736323,5.23261034,2838.4,2837.2,0.1]
[1763949736516,0.4903,2838.2,2837.5,0.1]
[1763949736813,0.4903,2838.2,2837.8,0.1]
[1763949737014,0.4903,2838.2,2837.2,0.1]
[1763949737224,0.4903,2838.2,2837.0,0.1]
[1763949737543,5.23061034,2837.8,2837.0,0.1]
[1763949737902,0.1822,2837.9,2836.4,0.2038]
[1763949738105,0.1822,2837.9,2837.3,0.1]
[1763949738300,0.1822,2837.9,2837.5,0.1]
[1763949738548,0.6725,2837.9,2837.2,0.1]
[1763949738750,0.6725,2837.9,2837.5,0.1]
[1763949738936,0.6725,2837.9,2837.3,0.1]
[1763949739114,0.4903,2837.8,2837.3,0.1]
[1763949739309,0.4903,2837.8,2836.1,0.90699264]
[1763949739310,0.4903,2837.8,2836.9,0.1]
[1763949739645,0.4903,2837.8,2836.0,0.1]
[1763949739850,5.23061034,2837.5,2835.7,0.1004]
[1763949740054,5.23061034,2837.5,2836.3,0.1]
[1763949740256,0.4903,2837.4,2836.3,0.1]
[1763949740473,0.1822,2836.4,2835.6,0.101]
[1763949740757,0.1822,2836.4,2835.6,0.001]
[1763949741168,0.1822,2836.8,2835.7,0.1004]
[1763949741341,0.4903,2837.4,2835.7,0.3047]
[1763949741661,0.4903,2837.3,2836.3,0.1]
[1763949742349,0.4903,2837.3,2835.8,0.03526341]
[1763949742534,0.4903,2837.3,2835.7,0.1004]
[1763949742535,0.4903,2837.3,2836.4,0.001]
[1763949743540,0.4903,2837.3,2836.5,0.1]
[1763949744327,0.4903,2837.3,2836.4,0.001]
[1763949744535,0.6725,2837.9,2836.4,0.001]
[1763949744744,0.4903,2837.8,2836.9,0.1]
[1763949744935,0.4903,2837.8,2836.7,0.1]
[1763949744936,5.23061034,2837.7,2836.7,0.1]
[1763949745134,0.4903,2837.8,2837.1,0.1]
[1763949745347,0.4903,2838.3,2837.6,0.1]
[1763949745522,0.002,2838.4,2838.1,0.1]
[1763949745746,0.4923,2838.4,2838.0,0.1]
[1763949746067,0.4923,2838.4,2837.6,0.1]
[1763949746473,0.002,2838.4,2838.0,0.1]
[1763949746773,0.002,2838.4,2838.3,0.1]
[1763949746972,0.002,2838.4,2837.9,0.1]
[1763949747176,0.002,2838.4,2838.3,0.1038]
[1763949747345,0.002,2838.4,2838.3,0.2038]
[1763949748036,0.002,2838.4,2838.3,0.1]
[1763949749667,0.002,2838.4,2837.5,0.1038]
[1763949749873,0.002,2838.4,2838.1,0.1]
[1763949750072,0.002,2838.4,2837.1,0.1038]
[1763949750374,0.002,2838.4,2837.8,0.1]
[1763949750575,0.4923,2838.4,2837.8,0.1]
[1763949750789,0.4923,2838.4,2837.1,0.1038]
[1763949751088,0.4923,2838.4,2837.8,0.1]
[1763949751268,0.002,2838.4,2837.1,0.3081]
[1763949751842,0.002,2838.4,2838.1,0.1]
[1763949752372,0.4923,2838.4,2838.1,0.1]
[1763949752572,0.4923,2838.4,2837.1,0.3081]
[1763949752773,0.4923,2838.4,2838.1,0.1]
[1763949753075,0.002,2838.4,2838.1,0.1]
[1763949753874,0.4903,2838.3,2837.7,0.1]
[1763949754078,0.4903,2838.3,2837.4,0.1]
[1763949754244,0.4903,2838.3,2837.8,0.1]
[1763949754439,0.4903,2838.3,2837.1,0.1038]
[1763949754668,0.4903,2838.3,2837.5,0.1]
[1763949755072,0.1822,2837.6,2837.2,0.1]
[1763949755447,0.6725,2837.6,2837.2,0.1]
[1763949755650,0.4903,2838.3,2837.2,0.3043]
[1763949755876,0.4903,2838.3,2837.9,0.1]
[1763949756265,0.4903,2838.3,2837.8,0.1]
[1763949756445,0.4903,2838.3,2837.5,0.1]
[1763949756643,0.4903,2838.3,2837.4,0.1]
[1763949756971,0.4903,2838.3,2836.4,0.001]
[1763949756972,4.29957342,2837.9,2836.4,0.001]
[1763949757174,4.29957342,2837.9,2837.4,0.1]
[1763949757376,4.29957342,2837.9,2836.4,0.03625595]
[1763949757377,0.1905,2836.5,2836.4,0.001]
[1763949757580,4.29957342,2837.6,2836.4,0.001]
[1763949757743,0.1905,2836.7,2836.4,0.001]
[1763949758277,0.6853,2836.7,2836.4,0.001]
[1763949758687,0.4948,2836.6,2836.4,0.001]
[1763949758845,0.4948,2837.0,2836.4,0.001]
[1763949759047,0.1905,2836.9,2836.4,0.001]
[1763949759596,0.1905,2836.9,2836.7,0.1]
[1763949759597,0.4948,2836.8,2836.7,0.1]
[1763949759812,4.79437342,2836.8,2836.4,0.001]
[1763949760276,0.4948,2836.7,2835.6,0.001]
[1763949760779,0.90699264,2837.2,2836.4,0.001]
[1763949760981,0.4948,2838.8,2837.4,0.1]
[1763949761180,0.4948,2838.8,2837.1,0.1048]
[1763949761181,0.4968,2838.4,2837.1,0.1048]
[1763949761383,0.4968,2838.4,2837.9,0.1]
[1763949761545,0.002,2838.4,2837.2,0.2053]
[1763949761752,0.002,2838.4,2837.6,0.1]
[1763949761948,0.002,2838.4,2838.1,0.1]
[1763949762185,0.002,2838.4,2838.3,0.1]
[1763949763162,0.002,2838.4,2838.2,0.1]
[1763949763496,0.002,2838.4,2837.1,0.1048]
[1763949763664,0.002,2838.4,2838.0,0.1]
[1763949763858,0.499,2838.4,2838.0,0.1]
[1763949764393,0.499,2838.4,2836.4,0.2063]
[1763949764394,4.29957342,2838.1,2836.4,0.2063]
[1763949764547,4.29957342,2838.1,2836.9,0.1048]
[1763949764742,4.79657342,2838.1,2837.5,0.1]
[1763949765155,0.1942,2837.6,2836.5,0.2053]
[1763949765350,0.1942,2837.6,2837.2,0.1]
[1763949765550,0.1942,2837.9,2837.5,0.1]
[1763949765785,0.1942,2837.9,2837.2,0.1]
[1763949765992,0.1942,2837.9,2837.6,0.1]
[1763949766361,0.497,2837.8,2837.4,0.1]
[1763949767494,0.002,2838.4,2837.9,0.1]
[1763949767809,0.497,2837.7,2836.6,0.1]
[1763949768160,0.497,2837.7,2836.9,0.1]
[1763949768161,0.1942,2837.6,2836.9,0.1]
[1763949769234,0.6912,2837.6,2836.9,0.1]
[1763949769688,0.497,2837.5,2836.4,0.001]
[1763949769889,0.497,2837.5,2836.6,0.1]
[1763949770089,0.1942,2837.6,2836.4,0.001]
[1763949770319,0.497,2837.5,2836.4,0.001]
[1763949770690,0.497,2838.0,2837.1,0.1]
[1763949770890,0.1942,2838.1,2836.5,0.2053]
[1763949771086,0.1942,2838.1,2837.7,0.1]
[1763949771422,0.1942,2836.6,2836.4,0.101]
[1763949771623,0.90699264,2837.7,2836.4,0.001]
[1763949771810,0.90699264,2837.7,2836.9,0.1]
[1763949771811,0.1942,2837.4,2836.9,0.1]
[1763949772015,0.1942,2837.4,2836.4,0.001]
[1763949772214,0.1942,2837.4,2837.1,0.1]
[1763949772402,1.10119264,2838.1,2837.1,0.1]
[1763949772403,0.1942,2838.1,2837.1,0.1]
[1763949772602,0.1942,2838.5,2837.7,0.1]
[1763949772802,0.1942,2838.5,2837.3,0.1048]
[1763949773137,0.1942,2838.5,2838.3,0.1]
[1763949773502,4.30494901,2839.0,2838.3,0.1]
[1763949773693,4.80194901,2839.0,2838.3,0.1]
[1763949774637,4.80194901,2839.0,2837.3,0.1048]
[1763949774946,4.80194901,2839.0,2835.1,10.01577924]
[1763949774947,0.00537559,2839.0,2837.4,0.03524353]
[1763949775093,4.29957342,2838.0,2837.0,0.1]
[1763949775299,0.497,2838.3,2837.0,0.2048]
[1763949775608,0.497,2838.3,2837.6,0.1]
[1763949776215,4.29957342,2838.0,2837.1,0.1]
[1763949776466,0.497,2838.3,2836.7,0.14005222]
[1763949776616,0.497,2838.3,2837.5,0.1]
[1763949777359,0.497,2838.3,2837.2,0.1]
[1763949778046,0.497,2838.3,2837.5,0.1]
[1763949779231,0.499,2838.3,2837.5,0.1]
[1763949779433,0.499,2838.3,2837.3,0.1]
[1763949779629,0.499,2838.3,2837.0,0.1]
[1763949779902,0.499,2838.3,2837.2,0.1]
[1763949780024,0.499,2838.3,2837.3,0.03524477]
[1763949780223,0.499,2838.3,2837.7,0.1]
[1763949780436,0.499,2838.3,2837.8,0.1]
[1763949780639,0.002,2838.3,2837.0,0.2053]
[1763949780954,0.00537559,2839.0,2838.9,0.1]
[1763949781156,0.00537559,2839.0,2838.9,0.3033]
[1763949781319,0.6912,2840.7,2838.9,3.345246]
[1763949781652,0.1942,2842.0,2840.4,0.1]
[1763949781854,0.1942,2842.0,2839.2,3.84357964]
[1763949781855,0.497,2841.7,2840.9,0.1]
[1763949782172,0.497,2841.7,2839.0,0.5324246]
[1763949782173,4.29957342,2841.4,2840.8,0.1]
[1763949782315,4.29957342,2841.4,2839.3,0.291]
[1763949782316,4.49377342,2840.9,2839.3,0.0931]
[1763949782520,0.90699264,2840.8,2839.8,0.1]
[1763949782751,0.90699264,2840.8,2838.9,0.0931]
[1763949782752,0.90699264,2840.2,2838.9,0.0931]
[1763949782955,0.90699264,2840.2,2836.6,12.09108007]
[1763949782956,0.1942,2839.4,2837.3,0.1979]
[1763949783155,0.1942,2839.4,2838.5,0.1]
[1763949783337,0.497,2839.3,2838.5,0.1]
[1763949783542,0.1942,2839.7,2838.3,0.1979]
[1763949783775,0.497,2839.9,2839.4,0.1]
[1763949783953,0.1942,2840.2,2839.7,0.1]
[1763949784157,0.1942,2842.0,2839.9,0.1]
[1763949784158,0.6912,2840.9,2839.9,0.1]
[1763949784355,0.6912,2840.9,2838.4,1.10489264]
[1763949784658,0.6912,2840.9,2840.6,0.1]
[1763949784871,0.1942,2840.9,2840.6,0.1]
[1763949785215,4.29957342,2841.3,2840.6,0.1]
[1763949785517,4.79657342,2841.3,2840.6,0.1]
[1763949785793,0.497,2841.8,2840.1,0.291]
[1763949786093,4.29957342,2842.6,2840.2,0.1979]
[1763949786391,4.29957342,2842.6,2840.6,0.1]
[1763949786392,4.29957342,2842.0,2840.6,0.1]
[1763949786585,4.29957342,2842.0,2840.1,0.0931]
[1763949786752,1.38189264,2841.9,2840.1,0.0931]
[1763949786955,1.38189264,2841.9,2841.1,0.1]
[1763949787189,0.4749,2841.8,2840.1,0.0931]
[1763949787379,0.4749,2841.8,2840.6,0.1]
[1763949787571,0.4749,2841.8,2840.9,0.1]
[1763949787966,0.4749,2841.8,2841.2,0.1]
[1763949788190,0.4749,2842.3,2840.2,2.56332]
[1763949788497,0.4749,2842.3,2840.1,3.81200278]
[1763949788498,4.29957342,2842.0,2840.3,0.63753228]
[1763949788657,0.4749,2842.3,2840.4,0.1979]
[1763949788859,4.29957342,2841.9,2840.1,0.0931]
[1763949789054,2.869857,2842.1,2840.1,0.0931]
[1763949789256,0.1952,2840.2,2839.7,0.1]
[1763949789560,0.90699264,2839.8,2838.8,0.1]
[1763949789824,4.29957342,2838.9,2837.4,0.1048]
[1763949789958,0.90699264,2838.3,2837.8,0.1]
[1763949790274,4.29957342,2837.9,2836.1,0.001]
[1763949790471,0.1952,2839.1,2836.1,0.001]
[1763949790472,4.29957342,2837.4,2836.1,0.001]
[1763949790716,0.1952,2837.8,2836.1,0.001]
[1763949790871,0.1952,2838.2,2836.4,0.23415595]
[1763949791073,0.1952,2838.2,2837.4,0.1]
[1763949791276,0.1952,2838.2,2837.7,0.1]
[1763949791620,0.1952,2838.2,2836.4,0.23415595]
[1763949791621,0.1952,2838.2,2836.7,0.1979]
[1763949791910,0.1952,2838.2,2836.4,0.03625595]
[1763949791911,0.4749,2838.1,2836.8,0.1]
[1763949792215,1.38189264,2838.1,2836.4,0.001]
[1763949792505,0.90699264,2837.6,2836.4,0.001]
[1763949792726,0.4749,2837.5,2836.4,0.001]
[1763949792854,0.4749,2838.0,2836.4,0.001]
[1763949793301,0.4749,2838.0,2836.6,0.1]
[1763949793669,3.99850863,2838.0,2836.6,0.1]
[1763949793872,4.29957342,2837.8,2836.6,0.1]
[1763949794307,0.4749,2837.7,2836.7,0.1]
[1763949794468,0.4749,2837.7,2836.4,0.001]
[1763949794671,0.4749,2837.7,2836.8,0.1]
[1763949795264,0.4749,2837.7,2837.0,0.1]
[1763949795858,0.4749,2838.1,2837.3,0.1]
[1763949796264,0.4749,2838.1,2836.4,0.1989]
[1763949796570,0.4749,2838.1,2837.1,0.1]
[1763949797012,0.4749,2838.1,2837.4,0.1]
[1763949797296,0.1952,2838.2,2837.6,0.1]
[1763949797509,0.4749,2838.5,2837.6,0.1]
[1763949797716,0.4749,2838.5,2837.9,0.1]
[1763949798212,0.4749,2838.5,2837.6,0.1]
[1763949800171,0.4749,2838.5,2837.5,0.1]
[1763949800479,0.1952,2838.6,2838.1,0.1]
[1763949801001,0.4749,2838.5,2838.1,0.1]
[1763949801188,0.4749,2838.5,2837.4,0.1]
[1763949801189,4.29957342,2838.2,2837.4,0.1]
[1763949801391,0.1952,2837.5,2836.8,0.001]
[1763949801700,0.4749,2838.1,2836.8,0.001]
[1763949802002,0.1952,2837.6,2836.8,0.101]
[1763949802373,0.1952,2837.6,2837.0,0.1]
[1763949802880,0.6701,2837.6,2836.8,0.001]
[1763949803290,0.4749,2837.5,2836.8,0.001]
[1763949803603,0.4749,2837.5,2836.9,0.1]
[1763949803801,0.4749,2837.5,2836.8,0.001]
[1763949804502,0.4749,2837.5,2836.8,0.101]
[1763949804876,0.4749,2837.5,2836.8,0.001]
[1763949805283,1.38189264,2837.5,2836.8,0.001]
[1763949805476,0.90699264,2837.4,2836.8,0.001]
[1763949805708,0.4749,2837.4,2836.8,0.001]
[1763949806002,0.4749,2837.3,2836.8,0.001]
[1763949806586,1.38189264,2837.3,2836.8,0.001]
[1763949806779,0.90699264,2837.1,2836.8,0.001]
[1763949807308,0.4749,2837.0,2836.8,0.001]
[1763949809382,0.1952,2836.9,2836.8,0.001]
[1763949809802,0.1952,2837.6,2836.8,0.001]
[1763949809803,0.4749,2837.5,2836.8,0.001]
[1763949810003,0.4749,2837.5,2836.9,0.1]
[1763949810397,0.1952,2837.6,2837.1,0.1]
[1763949810607,0.4749,2837.5,2837.1,0.1]
[1763949810919,0.1952,2837.9,2837.4,0.1]
[1763949811121,0.4749,2838.5,2837.8,0.1]
[1763949811297,0.4749,2838.5,2838.2,0.1]
[1763949811617,0.4749,2838.5,2836.8,7.2490974]
[1763949811618,0.4749,2838.5,2837.5,0.1]
[1763949811817,0.90699264,2838.2,2837.3,0.1]
[1763949812016,0.90699264,2838.4,2836.9,0.1]
[1763949812216,0.4749,2838.3,2836.8,0.001]
[1763949812421,0.4749,2838.3,2837.3,0.1]
[1763949812794,1.38189264,2838.3,2836.8,0.001]
[1763949813425,0.4749,2838.2,2836.9,0.1]
[1763949813581,5.19279182,2838.0,2836.9,0.1]
[1763949813807,0.90699264,2837.9,2836.9,0.1]
[1763949814013,0.90699264,2837.9,2836.8,0.001]
[1763949814014,1.33189264,2837.9,2836.8,0.001]
[1763949814350,0.4749,2837.8,2836.8,0.001]
[1763949816058,0.4749,2837.8,2837.2,0.1]
[1763949816362,0.4749,2837.8,2837.6,0.1]
[1763949816765,0.4603,2838.2,2837.7,0.1]
[1763949817057,0.1952,2838.6,2837.2,0.1048]
[1763949817058,0.1952,2838.6,2838.0,0.1]
[1763949817214,0.1952,2838.6,2838.2,0.1]
[1763949817410,0.6555,2838.6,2838.2,0.1]
[1763949817637,0.6555,2838.6,2837.2,0.3027]
[1763949817638,0.6555,2838.6,2838.3,0.1]
[1763949817824,0.1952,2839.1,2837.4,11.944041]
[1763949817825,0.6555,2839.1,2837.4,11.944041]
[1763949818049,0.199,2840.2,2837.6,7.04820974]
[1763949818354,0.199,2840.2,2839.1,0.1]
[1763949818355,0.4603,2839.8,2839.1,0.1]
[1763949819652,0.4603,2839.8,2839.4,0.1]
[1763949820216,1.36729264,2839.8,2838.5,0.1]
[1763949820520,8.41004444,2839.8,2838.5,0.1]
[1763949820841,0.4603,2839.7,2838.5,0.1]
[1763949821462,0.4603,2839.7,2838.8,0.1]
[1763949821668,0.4603,2839.7,2838.1,0.1979]
[1763949821669,0.4603,2839.7,2839.1,0.1]
[1763949821972,0.4603,2839.7,2839.0,0.1]
[1763949822188,0.4603,2839.7,2838.9,0.1]
[1763949822687,0.4603,2839.7,2839.3,0.1]
[1763949822887,0.4603,2839.7,2838.1,0.1979]
[1763949823088,0.4603,2839.7,2838.9,0.1]
[1763949823598,0.1877,2839.0,2837.6,0.1979]
[1763949823755,0.4603,2839.7,2837.7,0.2331398]
[1763949823960,0.4603,2839.7,2837.8,0.72813123]
[1763949824273,0.4603,2839.7,2839.2,0.1]
[1763949824681,0.4603,2839.7,2837.9,0.1979]
[1763949824682,0.4603,2839.7,2839.1,0.1]
[1763949825083,0.4603,2839.7,2839.4,0.1]
[1763949825582,0.4603,2839.7,2838.2,0.1979]
[1763949826105,0.4603,2839.7,2838.2,3.72117832]
[1763949826247,0.4603,2839.7,2839.3,0.1]
[1763949826694,0.1952,2840.0,2839.6,0.1]
[1763949826880,0.6739,2840.0,2839.6,0.1]
[1763949827252,0.199,2840.2,2839.0,0.0931]
[1763949827556,0.6664,2840.5,2839.1,0.1979]
[1763949827877,0.6664,2840.5,2839.0,0.0931]
[1763949827878,0.6664,2840.5,2839.7,0.1]
[1763949828080,0.4787,2840.4,2839.5,0.1]
[1763949828379,0.1877,2839.6,2839.3,0.1]
[1763949828787,0.1877,2839.6,2838.8,0.0931]
[1763949828989,0.1877,2839.6,2838.9,0.1]
[1763949828990,0.6664,2839.6,2838.9,0.1]
[1763949829382,0.4787,2839.5,2838.5,0.1]
[1763949829686,0.4787,2839.5,2838.6,0.1]
[1763949829887,0.4787,2839.5,2838.8,0.1]
[1763949830394,0.1877,2838.9,2838.8,0.1]
[1763949831268,0.6664,2838.9,2837.5,3.36073]
[1763949831471,0.6664,2838.9,2838.5,0.1]
[1763949831702,0.4787,2838.8,2837.5,2.988476]
[1763949831889,0.1877,2838.9,2837.4,0.1979]
[1763949832068,0.4787,2839.3,2838.8,0.1]
[1763949832688,0.1877,2838.9,2838.4,0.1]
[1763949832888,0.1877,2838.9,2838.5,0.1]
[1763949833093,0.4787,2838.8,2838.2,0.1]
[1763949833657,0.4787,2838.8,2838.0,0.1]
[1763949833858,0.4787,2838.8,2838.3,0.1]
[1763949834494,0.4287,2838.8,2838.3,0.1]
[1763949835101,0.1877,2838.9,2838.2,0.05]
[1763949835294,0.1877,2838.9,2838.7,0.1]
[1763949835591,0.1877,2838.9,2837.1,3.52460905]
[1763949835765,0.1877,2838.9,2838.3,0.1]
[1763949835957,0.1877,2838.9,2837.4,0.2479]
[1763949835958,0.1877,2838.9,2838.1,0.1]
[1763949836355,0.1877,2838.9,2837.5,0.001]
[1763949836356,0.1877,2838.9,2838.2,0.1]
[1763949836559,0.4787,2838.8,2838.2,0.1]
[1763949837289,0.4787,2838.8,2837.5,0.001]
[1763949837481,0.4787,2838.8,2838.2,0.1]
[1763949838266,0.4787,2838.8,2837.8,0.1]
[1763949838461,0.4787,2838.8,2837.5,0.001]
[1763949838462,0.90699264,2838.7,2837.5,0.101]
[1763949838871,0.1877,2838.9,2837.5,0.101]
[1763949838872,0.4787,2838.6,2837.5,0.101]
[1763949839193,0.4787,2838.6,2837.8,0.1]
[1763949839560,0.1877,2837.9,2837.8,0.1]
[1763949839760,0.1877,2837.9,2837.5,0.001]
[1763949839962,0.4787,2837.8,2837.5,0.001]
[1763949840502,0.1877,2837.9,2837.6,0.1]
[1763949840705,0.1877,2838.2,2837.5,0.001]